fUST/lending_fUST_20251115
["ID","MTS","AMOUNT","RATE_DAILY","PERIOD"]
[394034388,1763204713145,576.25,9.6e-05,2]
[394034389,1763204713467,576.25,9.7e-05,2]
[394034390,1763204713988,576.25,9.9e-05,2]
[394034391,1763204714305,576.25,0.0001,2]
[394034392,1763204714629,576.25,0.000101,2]
[394034393,1763204714944,576.25,0.000103,2]
[394034394,1763204715296,3102.54,0.00020187,2]
[394034395,1763204715318,1897.46,0.00020187,2]
[394034396,1763204715344,576.25,0.000104,2]
[394034397,1763204715581,576.25,0.000106,2]
[394034398,1763204715973,576.25,0.000107,2]
[394034399,1763204716261,576.25,0.000109,2]
[394034400,1763204716608,576.25,0.00011,2]
[394034401,1763204716954,576.25,0.000111,2]
[394034402,1763204717247,576.25,0.000113,2]
[394034403,1763204717574,576.25,0.000114,2]
[394034404,1763204717822,576.25,0.000116,2]
[394034405,1763204718243,576.25,0.000117,2]
[394034406,1763204718517,576.25,0.000119,2]
[394034407,1763204718870,576.25,0.00012,2]
[394034408,1763204719168,1187.55,5e-05,2]
[394034409,1763204719206,10000.01,5e-05,2]
[394034410,1763204719229,10000.01,5e-05,2]
[394034411,1763204719250,7625.06,5e-05,2]
[394034412,1763204737508,2374.95,0.00019997,2]
[394034413,1763204737530,2625.05,0.00019997,2]
[394034414,1763204745278,5000.0,0.00019997,2]
[394034415,1763204760616,2374.96,0.00019997,2]
[394034416,1763204760639,2625.04,0.00019997,2]
[394034417,1763204761773,455.36,5e-05,2]
[394034418,1763204762108,455.36,5.1e-05,2]
[394034419,1763204762432,455.36,5.3e-05,2]
[394034420,1763204762741,455.36,5.4e-05,2]
[394034421,1763204762992,455.36,5.6e-05,2]
[394034422,1763204763272,455.36,5.7e-05,2]
[394034423,1763204764056,455.36,5.9e-05,2]
[394034424,1763204764344,455.36,6e-05,2]
[394034425,1763204764619,455.36,6.1e-05,2]
[394034426,1763204764952,455.36,6.3e-05,2]
[394034427,1763204765235,455.36,6.4e-05,2]
[394034428,1763204765515,455.36,6.6e-05,2]
[394034429,1763204765904,455.36,6.7e-05,2]
[394034430,1763204766191,455.36,6.9e-05,2]
[394034431,1763204766464,455.36,7e-05,2]
[394034432,1763204766759,455.36,7.1e-05,2]
[394034433,1763204767076,89.21,7.3e-05,2]
[394034434,1763204767105,366.15,7.3e-05,2]
[394034435,1763204767404,455.36,7.4e-05,2]
[394034436,1763204767730,455.36,7.6e-05,2]
[394034437,1763204768031,455.36,7.7e-05,2]
[394034438,1763204768354,455.36,7.9e-05,2]
[394034439,1763204768398,5000.0,0.00019997,2]
[394034440,1763204768658,455.36,8e-05,2]
[394034441,1763204768947,455.36,8.1e-05,2]
[394034442,1763204769264,455.36,8.3e-05,2]
[394034443,1763204769547,455.36,8.4e-05,2]
[394034444,1763204769853,455.36,8.6e-05,2]
[394034445,1763204770144,455.36,8.7e-05,2]
[394034446,1763204771178,80.26,8.9e-05,2]
[394034447,1763204771204,375.1,8.9e-05,2]
[394034448,1763204771457,455.36,9e-05,2]
[394034449,1763204771743,455.36,9.1e-05,2]
[394034450,1763204772056,455.36,9.3e-05,2]
[394034451,1763204772338,455.36,9.4e-05,2]
[394034452,1763204772636,455.36,9.6e-05,2]
[394034453,1763204772922,455.36,9.7e-05,2]
[394034454,1763204773213,455.36,9.9e-05,2]
[394034455,1763204773522,455.36,0.0001,2]
[394034456,1763204773837,455.36,0.000101,2]
[394034457,1763204774115,455.36,0.000103,2]
[394034458,1763204774438,455.36,0.000104,2]
[394034459,1763204774728,455.36,0.000106,2]
[394034460,1763204775003,455.36,0.000107,2]
[394034461,1763204775367,455.36,0.000109,2]
[394034462,1763204775651,455.36,0.00011,2]
[394034463,1763204775947,455.36,0.000111,2]
[394034464,1763204776250,455.36,0.000113,2]
[394034465,1763204776536,455.36,0.000114,2]
[394034466,1763204776835,455.36,0.000116,2]
[394034467,1763204777222,455.36,0.000117,2]
[394034468,1763204777503,455.36,0.000119,2]
[394034469,1763204777782,455.36,0.00012,2]
[394034470,1763204785916,-1108.78402056,0.00019986,2]
[394034471,1763204788377,-2420.87112741,0.00019986,2]
[394034472,1763204790307,-386.19032552,0.00019986,2]
[394034473,1763204791426,-1084.15452651,0.00019986,2]
[394034474,1763204792190,1724.60096834,0.00019786,2]
[394034475,1763204807446,5000.0,0.00019986,2]
[394034477,1763204821790,240.83,5e-05,2]
[394034478,1763204829906,193.78065128,0.00019989,2]
[394034480,1763204969127,-472.385717,0.00020187,2]
[394034481,1763204969146,-150.0,0.00021433,2]
[394034482,1763204969166,-177.0,0.00023433,2]
[394034483,1763204969184,-160.0,0.00023949,2]
[394034484,1763204969202,-254.79639197,0.00025433,2]
[394034485,1763204969220,-167.407172,0.00025649,2]
[394034486,1763204969238,-393.51483842,0.00026081,2]
[394034487,1763204969255,-4199.5249328,0.00026322,2]
[394034488,1763204969273,-1092.0,0.00026574,2]
[394034489,1763204969291,-300.0,0.00026574,2]
[394034490,1763204969309,-472.385717,0.00026676,2]
[394034491,1763204969327,-346.40368545,0.00026989,2]
[394034492,1763204969346,-478.43462876,0.00026989,2]
[394034493,1763204969369,-176.59282137,0.00026989,2]
[394034494,1763204969388,-1713.31443798,0.0002699,2]
[394034654,1763205033661,493.21125822,0.00020087,2]
[394034662,1763205038023,-782.14455852,0.00026282,2]
[394034663,1763205038032,-1635.42798411,0.0002699,2]
[394034664,1763205038075,-1940.29941832,0.0002699,2]
[394034705,1763205040099,-3e-08,0.0002699,2]
[394034707,1763205040111,-2215.58800623,0.0002699,2]
[394035134,1763205044440,-439.28075273,0.00026989,2]
[394035242,1763205049656,-60.71924727,0.00026989,2]
[394035243,1763205049666,-335.42640924,0.0002699,2]
[394035244,1763205049677,-7883.45929748,0.0002699,2]
[394035245,1763205051786,-40608.58831861,0.0002699,2]
[394035246,1763205051796,-161.9324311,0.00027523,2]
[394035247,1763205051806,-500.81231286,0.00027873,5]
[394035248,1763205051815,-525.85354512,0.00027873,5]
[394035249,1763205051824,-164.08794522,0.00027873,2]
[394035250,1763205051833,-302.4420853,0.00027877,2]
[394035251,1763205051843,-500.0,0.00027877,2]
[394035252,1763205051852,-546.25663229,0.00027877,2]
[394035253,1763205051862,-91174.3081181,0.00027878,2]
[394035254,1763205051871,-5720.85,0.00027878,3]
[394035255,1763205051880,-110229.80533949,0.00027888,2]
[394035257,1763205775341,159.0,9e-07,2]
[394035258,1763205776394,159.0,9e-07,2]
[394035259,1763205777429,159.0,9e-07,2]
[394035260,1763205778542,159.0,9e-07,2]
[394035261,1763205779597,159.0,9e-07,2]
[394035262,1763205780624,159.0,9e-07,2]
[394035263,1763205781678,159.0,9e-07,2]
[394035264,1763205782855,159.0,9e-07,2]
[394035265,1763205784007,159.0,9e-07,2]
[394035266,1763205785050,159.0,9e-07,2]
[394035267,1763205919699,453.86465756,0.00019889,4]
[394035268,1763205945125,-177.84199726,0.00020088,4]
[394035269,1763206054083,-100.46295918,0.00020088,4]
[394035270,1763206054105,-190.63778724,0.00022769,2]
[394035271,1763206054130,-300.0,0.00022972,2]
[394035272,1763206054151,-502.06072498,0.00022973,2]
[394035273,1763206054171,-533.2722871,0.00022973,2]
[394035274,1763206054192,-229.78066075,0.00022973,2]
[394035277,1763206064084,7956.14534244,0.00018,2]
[394035278,1763206064107,10000.01,0.00018,2]
[394035279,1763206064130,10000.01,0.00018,2]
[394035280,1763206064153,10000.01,0.00018,2]
[394035281,1763206064175,3296.90858855,0.00018,2]
[394035282,1763206082396,150.99,5e-05,2]
[394035283,1763206082775,150.99,5.4e-05,2]
[394035284,1763206083142,150.99,5.8e-05,2]
[394035285,1763206084093,150.99,6.2e-05,2]
[394035286,1763206084439,150.99,6.6e-05,2]
[394035287,1763206084765,150.99,6.9e-05,2]
[394035288,1763206085097,150.99,7.3e-05,2]
[394035289,1763206085426,150.99,7.7e-05,2]
[394035290,1763206085723,150.99,8.1e-05,2]
[394035291,1763206086002,150.99,8.5e-05,2]
[394035292,1763206086282,150.99,8.9e-05,2]
[394035293,1763206086571,150.99,9.3e-05,2]
[394035294,1763206086883,150.99,9.7e-05,2]
[394035295,1763206087174,150.99,0.000101,2]
[394035296,1763206087455,150.99,0.000104,2]
[394035297,1763206087747,150.99,0.000108,2]
[394035298,1763206088056,150.99,0.000112,2]
[394035299,1763206088335,150.99,0.000116,2]
[394035300,1763206106145,3985.28141145,0.00017,2]
[394035301,1763206106166,10000.01,0.00017,2]
[394035302,1763206106188,10000.01,0.00017,2]
[394035303,1763206106212,13649.79894133,0.00017,2]
[394035306,1763206116978,511.26867874,0.0001,2]
[394035308,1763206141720,153.49,5e-05,2]
[394035309,1763206142102,153.49,6e-05,2]
[394035310,1763206142386,153.49,7e-05,2]
[394035311,1763206142651,153.49,8e-05,2]
[394035312,1763206142938,153.49,9e-05,2]
[394035313,1763206143234,153.49,0.0001,2]
[394035314,1763206143558,153.49,0.00011,2]
[394035315,1763206143840,153.49,0.00012,2]
[394035317,1763206159078,-4628.47339746,0.0002,2]
[394035318,1763206174106,-5871.4553241,0.00022719,2]
[394035319,1763206174129,-3732.53063122,0.00022743,2]
[394035368,1763206238075,-1267.46936878,0.00022743,2]
[394035369,1763206238085,-270.21933925,0.00022973,2]
[394035370,1763206238098,-500.0,0.00022973,2]
[394035371,1763206238107,-501.99611754,0.00022973,2]
[394035372,1763206238117,-500.0,0.00022973,2]
[394035373,1763206238126,-501.33763456,0.00022973,2]
[394035374,1763206238137,-500.0,0.00022973,2]
[394035375,1763206238146,-501.50208513,0.00022973,2]
[394035376,1763206238155,-500.0,0.00022973,2]
[394035377,1763206238165,-500.0,0.00022973,2]
[394035378,1763206238176,-500.0,0.00022973,2]
[394035379,1763206238185,-477.74577119,0.00022973,2]
[394035380,1763206238194,-500.0,0.00022973,2]
[394035381,1763206238204,-524.70181633,0.00022973,2]
[394035382,1763206238213,-277.69289188,0.00022999,2]
[394035383,1763206238223,-500.0,0.00022999,2]
[394035384,1763206238232,-500.0,0.00022999,2]
[394035385,1763206238241,-500.0,0.00022999,2]
[394035386,1763206238251,-500.0,0.00022999,2]
[394035387,1763206238260,-500.0,0.00022999,2]
[394035388,1763206238269,-500.0,0.00022999,2]
[394035389,1763206238279,-17657.07163046,0.00023,2]
[394035390,1763206238288,-3553.7305841,0.00023,2]
[394035391,1763206238297,-500.0,0.00023521,2]
[394035392,1763206238307,-999.0,0.00023802,2]
[394035393,1763206238316,-68396.58387566,0.00024142,2]
[394035394,1763206238325,-245.52,0.000253,7]
[394035395,1763206238335,-2621.687504,0.00025457,2]
[394035396,1763206238344,-4096.38672499,0.00025457,2]
[394035397,1763206238353,-1719.30979748,0.00025457,2]
[394035398,1763206238362,-165.21243299,0.0002564,4]
[394035399,1763206238371,-660.84973195,0.00025737,4]
[394035400,1763206238380,-14529.8521722,0.00025866,2]
[394035401,1763206238392,-270.1578278,0.00025866,2]
[394035402,1763206238401,-464.12116539,0.00025873,2]
[394035403,1763206238412,-35.87883461,0.00025873,2]
[394035404,1763206238421,-266.12116539,0.00025873,2]
[394035405,1763206238435,-71.05208833,0.00025873,2]
[394035406,1763206238453,-500.0,0.00025873,2]
[394035407,1763206238463,-158.78492704,0.00025873,2]
[394035408,1763206238472,-500.0,0.00025873,2]
[394035409,1763206238482,-500.0,0.00025873,2]
[394035410,1763206238491,-501.14023227,0.00025873,2]
[394035411,1763206238500,-506.86742327,0.00025873,2]
[394035412,1763206238510,-160.0,0.00025873,2]
[394035413,1763206238519,-5678.62653934,0.0002599,2]
[394035414,1763206238528,-1141.85928441,0.00026,30]
[394035456,1763206240291,-507.557096,0.00026,30]
[394035457,1763206240303,-500.0,0.00026,30]
[394035458,1763206240312,-178.74833836,0.00026,7]
[394035459,1763206240346,-3.17603364,0.00026,7]
[394035460,1763206240355,-181.924372,0.00026,7]
[394035461,1763206240365,-151.0,0.00026,7]
[394035462,1763206240374,-151.0,0.00026,7]
[394035463,1763206240383,-181.924372,0.00026,7]
[394035464,1763206240393,-156.041548,0.00026,7]
[394035465,1763206240402,-181.924372,0.00026,7]
[394035466,1763206240411,-151.0,0.00026,7]
[394035467,1763206240421,-151.0,0.00026,7]
[394035468,1763206240430,-151.0,0.00026,7]
[394035469,1763206240439,-130.00930236,0.00026,7]
[394035475,1763206246486,-241.39237102,0.00025456,2]
[394035476,1763206246496,-322.39884298,0.00025456,2]
[394035478,1763206740999,-5000.0,0.00021948,2]
[394035479,1763206741022,-218.810869,0.00022316,2]
[394035480,1763206741043,-300.0,0.00022971,2]
[394035481,1763206741064,-278.0,0.00022972,2]
[394035482,1763206741086,-1200.0,0.00022972,2]
[394035483,1763206741107,-500.0,0.00022973,2]
[394035484,1763206741128,-500.0,0.00022973,2]
[394035485,1763206741151,-500.0,0.00022973,2]
[394035486,1763206741173,-500.0,0.00022999,2]
[394035487,1763206741195,-500.0,0.00022999,2]
[394035488,1763206741228,-500.0,0.00022999,2]
[394035489,1763206741255,-2972.05,0.00022999,2]
[394035490,1763206741277,-160.4123185,0.00022999,2]
[394035491,1763206741297,-177.68397295,0.00022999,2]
[394035492,1763206741318,-500.0,0.00023,2]
[394035493,1763206741338,-500.0,0.00023,2]
[394035494,1763206741358,-500.0,0.00023,2]
[394035495,1763206741378,-424.1274135,0.0002345,2]
[394035496,1763206741398,-1000.0,0.00023521,2]
[394035497,1763206741419,-1065.47650412,0.00023548,2]
[394035498,1763206741438,-1000.0,0.00023548,2]
[394035499,1763206741458,-505.04183023,0.00023548,2]
[394035500,1763206741478,-559.92256207,0.00024068,2]
[394035501,1763206741500,-1500.0,0.00024096,2]
[394035502,1763206741523,-235.07249502,0.0002414,2]
[394035503,1763206741545,-351.59110593,0.0002414,2]
[394035504,1763206741567,-500.0,0.0002414,2]
[394035505,1763206741591,-500.0,0.0002414,2]
[394035506,1763206741613,-500.0,0.0002414,2]
[394035507,1763206741636,-500.0,0.0002414,2]
[394035508,1763206741657,-500.0,0.0002414,2]
[394035509,1763206741681,-500.0,0.0002414,2]
[394035510,1763206741705,-500.0,0.0002414,2]
[394035511,1763206741727,-500.0,0.0002414,2]
[394035512,1763206741754,-500.0,0.0002414,2]
[394035513,1763206741778,-500.0,0.0002414,2]
[394035514,1763206741801,-500.0,0.0002414,2]
[394035515,1763206741824,-500.0,0.0002414,2]
[394035516,1763206741847,-500.0,0.0002414,2]
[394035517,1763206741869,-350.63041019,0.0002414,2]
[394035518,1763206741892,-500.0,0.0002414,2]
[394035519,1763206741916,-500.0,0.0002414,2]
[394035520,1763206741940,-626.4174751,0.0002414,2]
[394035521,1763206741965,-500.0,0.0002414,2]
[394035522,1763206741989,-500.0,0.0002414,2]
[394035523,1763206742016,-500.0,0.0002414,2]
[394035524,1763206742037,-2972.05,0.00024141,2]
[394035525,1763206742059,-2972.05,0.00024141,2]
[394035526,1763206742081,-2972.05,0.00024141,2]
[394035527,1763206742103,-2972.05,0.00024141,2]
[394035528,1763206742125,-9401.1064987,0.00024396,2]
[394035529,1763206742146,-1003.57126584,0.00024644,2]
[394035530,1763206742169,-420.0,0.00024937,2]
[394035531,1763206742193,-566.81950662,0.00025664,4]
[394035532,1763206742215,-500.0,0.00025866,2]
[394035533,1763206742245,-500.0,0.00025866,2]
[394035534,1763206742269,-2972.05,0.00025866,2]
[394035535,1763206742291,-500.0,0.00025872,2]
[394035536,1763206742312,-218.5162716,0.00025872,2]
[394035537,1763206742332,-500.0,0.00025873,2]
[394035538,1763206742353,-500.0,0.00025873,2]
[394035539,1763206742374,-520.87110955,0.00025873,2]
[394035540,1763206742395,-500.0,0.00025873,2]
[394035541,1763206742416,-160.0,0.00025967,2]
[394035542,1763206742437,-151.0,0.0002599,2]
[394035543,1763206742457,-151.00000001,0.0002599,2]
[394035544,1763206742477,-151.0,0.00026,7]
[394035545,1763206742498,-500.0,0.00026,2]
[394035546,1763206742519,-427.53881314,0.00026,2]
[394035547,1763206742540,-2972.05,0.00026026,2]
[394035548,1763206742561,-430.17551842,0.00026036,2]
[394035549,1763206742581,-405.59,0.00026039,2]
[394035550,1763206742602,-245.8988315,0.00026139,2]
[394035551,1763206742624,-620.44566743,0.00026199,2]
[394035552,1763206742754,-1116.80220138,0.00026199,2]
[394035553,1763206742776,-981.57135542,0.00026282,2]
[394035554,1763206742798,-431.004357,0.00026298,2]
[394035555,1763206742820,-600.0,0.00026381,30]
[394035556,1763206742841,-200.74444641,0.00026418,2]
[394035557,1763206742861,-1008.56824134,0.00026421,2]
[394035558,1763206742881,-1001.25751545,0.00026421,2]
[394035559,1763206742902,-500.65210024,0.00026473,2]
[394035560,1763206742925,-500.0,0.00026473,2]
[394035561,1763206742949,-500.0,0.00026473,2]
[394035562,1763206742971,-504.36325668,0.00026473,2]
[394035563,1763206742993,-503.88181205,0.00026473,2]
[394035564,1763206743017,-400.0,0.00026515,2]
[394035565,1763206743038,-329.0,0.00026517,2]
[394035566,1763206743060,-500.0,0.00026572,2]
[394035567,1763206743081,-500.0,0.00026573,2]
[394035568,1763206743103,-501.29113937,0.00026573,2]
[394035569,1763206743124,-500.0,0.00026573,2]
[394035570,1763206743146,-198.9325764,0.00026573,2]
[394035571,1763206743167,-500.0,0.00026573,2]
[394035572,1763206743188,-500.99153154,0.00026573,2]
[394035573,1763206743209,-500.0,0.00026573,2]
[394035574,1763206743231,-157.30252045,0.00026573,2]
[394035575,1763206743257,-503.05674476,0.00026573,2]
[394035576,1763206743278,-500.0,0.00026573,2]
[394035577,1763206743300,-500.71053897,0.00026573,2]
[394035578,1763206743322,-501.43436084,0.00026573,2]
[394035579,1763206743343,-500.0,0.00026573,2]
[394035580,1763206743364,-626.92217875,0.00026575,2]
[394035581,1763206743386,-171.41,0.00026586,10]
[394035582,1763206743407,-2751.29664047,0.00026587,2]
[394035583,1763206743427,-2751.29664045,0.0002659,2]
[394035584,1763206743449,-2751.29664045,0.00026592,2]
[394035585,1763206743472,-2751.29664045,0.00026595,2]
[394035586,1763206743493,-2972.05,0.00026596,2]
[394035587,1763206743516,-151.0,0.00026596,7]
[394035588,1763206743537,-190.203213,0.00026596,7]
[394035589,1763206743558,-151.0,0.00026596,7]
[394035590,1763206743579,-190.203213,0.00026596,7]
[394035591,1763206743601,-151.0,0.00026596,7]
[394035592,1763206743623,-190.203213,0.00026596,7]
[394035593,1763206743647,-190.203213,0.00026596,7]
[394035594,1763206743669,-158.951562,0.00026596,7]
[394035595,1763206743691,-187.825468,0.00026596,7]
[394035596,1763206743717,-282.71241,0.00026596,7]
[394035597,1763206743741,-282.71241,0.00026596,7]
[394035598,1763206743764,-151.0,0.00026596,7]
[394035599,1763206743786,-151.0,0.00026596,7]
[394035600,1763206743808,-282.71241,0.00026596,7]
[394035601,1763206743830,-151.0,0.00026596,7]
[394035602,1763206743853,-282.71241,0.00026596,7]
[394035603,1763206743874,-151.0,0.00026596,7]
[394035604,1763206743897,-151.0,0.00026596,7]
[394035605,1763206743921,-151.0,0.00026596,7]
[394035606,1763206743944,-168.97465971,0.00026596,2]
[394035607,1763206743966,-500.0,0.00026596,2]
[394035608,1763206743988,-211.70945971,0.00026596,2]
[394035609,1763206744011,-266.89178862,0.00026596,2]
[394035610,1763206744033,-217.829724,0.00026596,7]
[394035611,1763206744055,-217.829724,0.00026596,7]
[394035612,1763206744076,-172.202905,0.00026596,7]
[394035613,1763206744098,-152.850877,0.00026596,7]
[394035614,1763206744120,-217.829724,0.00026596,7]
[394035615,1763206744146,-217.829724,0.00026596,7]
[394035616,1763206744173,-151.0,0.00026596,7]
[394035617,1763206744200,-151.0,0.00026596,7]
[394035618,1763206744226,-151.0,0.00026596,7]
[394035619,1763206744253,-168.444967,0.00026596,7]
[394035620,1763206744279,-151.0,0.00026596,7]
[394035621,1763206744302,-180.46961629,0.00026597,2]
[394035622,1763206744328,-2751.29664045,0.00026597,2]
[394035623,1763206744353,-31559.1174737,0.00026632,2]
[394035624,1763206744377,-239.93238978,0.00026632,2]
[394035625,1763206744401,-1771.00757271,0.00026671,2]
[394035626,1763206744426,-500.0,0.00026672,2]
[394035627,1763206744451,-500.0,0.00026673,2]
[394035628,1763206744477,-511.09353697,0.00026673,2]
[394035629,1763206744500,-509.93100257,0.00026673,2]
[394035630,1763206744524,-283.27030493,0.00026673,2]
[394035631,1763206744549,-292.13648314,0.00026673,2]
[394035632,1763206744573,-500.0,0.00026673,2]
[394035633,1763206744597,-31559.1174737,0.00026676,2]
[394035634,1763206744621,-239.93238978,0.00026676,2]
[394035635,1763206744646,-5090.43,0.00026677,3]
[394035636,1763206744670,-2545.21,0.00026677,3]
[394035637,1763206744695,-1272.61,0.00026677,3]
[394035638,1763206744718,-1272.61,0.00026677,3]
[394035639,1763206744742,-31559.1174737,0.00026677,2]
[394035640,1763206744767,-239.93238978,0.00026677,2]
[394035641,1763206744793,-209.40437684,0.00026681,2]
[394035642,1763206744818,-151.0,0.00026681,2]
[394035643,1763206744842,-155.69944327,0.00026681,2]
[394035644,1763206744867,-500.0,0.00026686,2]
[394035645,1763206744891,-500.0,0.00026686,2]
[394035646,1763206744916,-500.0,0.00026686,2]
[394035647,1763206744941,-500.0,0.00026686,2]
[394035648,1763206744967,-500.0,0.00026686,2]
[394035649,1763206744992,-395.90921501,0.00026686,2]
[394035650,1763206745017,-500.0,0.00026686,2]
[394035651,1763206745040,-500.0,0.00026686,2]
[394035652,1763206745063,-500.0,0.00026686,2]
[394035653,1763206745088,-500.0,0.00026686,2]
[394035654,1763206745116,-500.0,0.00026686,2]
[394035655,1763206745141,-500.0,0.00026686,2]
[394035656,1763206745164,-500.0,0.00026686,2]
[394035657,1763206745188,-500.0,0.00026686,2]
[394035658,1763206745212,-500.0,0.00026686,2]
[394035659,1763206745238,-500.0,0.00026686,2]
[394035660,1763206745263,-500.0,0.00026686,2]
[394035661,1763206745286,-500.0,0.00026686,2]
[394035662,1763206745309,-500.0,0.00026686,2]
[394035663,1763206745345,-500.0,0.00026686,2]
[394035664,1763206745372,-151.0,0.00026686,7]
[394035665,1763206745398,-496.542933,0.00026686,7]
[394035666,1763206745425,-151.0,0.00026686,7]
[394035667,1763206745450,-221.76514,0.00026686,7]
[394035668,1763206745479,-496.542933,0.00026686,7]
[394035669,1763206745505,-496.542933,0.00026686,7]
[394035670,1763206745531,-496.542933,0.00026686,7]
[394035671,1763206745557,-151.0,0.00026686,7]
[394035672,1763206745582,-2972.05,0.00026686,2]
[394035673,1763206745606,-2972.05,0.00026686,2]
[394035674,1763206745631,-2972.05,0.00026686,2]
[394035675,1763206745656,-2972.05,0.00026686,2]
[394035676,1763206745680,-2972.05,0.00026686,2]
[394035677,1763206745705,-2972.05,0.00026686,2]
[394035678,1763206745883,-2972.05,0.00026686,2]
[394035679,1763206745905,-2972.05,0.00026686,2]
[394035680,1763206745928,-2972.05,0.00026686,2]
[394035681,1763206745950,-2972.05,0.00026686,2]
[394035682,1763206745971,-2972.05,0.00026686,2]
[394035683,1763206745994,-2972.05,0.00026686,2]
[394035684,1763206746016,-2972.05,0.00026686,2]
[394035685,1763206746039,-2972.05,0.00026686,2]
[394035686,1763206746062,-2972.05,0.00026686,2]
[394035687,1763206746084,-2972.07230819,0.00026686,2]
[394035688,1763206746106,-151.0,0.00026686,7]
[394035689,1763206746129,-190.203213,0.00026686,7]
[394035690,1763206746151,-153.123315,0.00026686,7]
[394035691,1763206746173,-190.203213,0.00026686,7]
[394035692,1763206746195,-151.0,0.00026686,7]
[394035693,1763206746218,-190.203213,0.00026686,7]
[394035694,1763206746243,-190.203213,0.00026686,7]
[394035695,1763206746266,-1000.0,0.00026686,2]
[394035696,1763206746290,-460.05,0.00026686,2]
[394035697,1763206746314,-282.71241,0.00026686,7]
[394035698,1763206746336,-282.71241,0.00026686,7]
[394035699,1763206746357,-151.0,0.00026686,7]
[394035700,1763206746379,-151.0,0.00026686,7]
[394035701,1763206746402,-282.71241,0.00026686,7]
[394035702,1763206746424,-151.0,0.00026686,7]
[394035703,1763206746446,-151.0,0.00026686,7]
[394035704,1763206746468,-151.0,0.00026686,7]
[394035705,1763206746490,-282.71241,0.00026686,7]
[394035706,1763206746512,-151.0,0.00026686,7]
[394035707,1763206746533,-151.0,0.00026686,7]
[394035708,1763206746556,-151.0,0.00026686,7]
[394035709,1763206746578,-151.0,0.00026686,7]
[394035710,1763206746604,-151.0,0.00026686,7]
[394035711,1763206746626,-217.829724,0.00026686,7]
[394035712,1763206746648,-217.829724,0.00026686,7]
[394035713,1763206746670,-217.829724,0.00026686,7]
[394035714,1763206746691,-217.829724,0.00026686,7]
[394035715,1763206746711,-217.829724,0.00026686,7]
[394035716,1763206746732,-217.829724,0.00026686,7]
[394035717,1763206746755,-217.829724,0.00026686,7]
[394035718,1763206746777,-217.829724,0.00026686,7]
[394035719,1763206746801,-151.0,0.00026686,7]
[394035720,1763206746826,-151.0,0.00026686,7]
[394035721,1763206746850,-151.0,0.00026686,7]
[394035722,1763206746873,-151.0,0.00026686,7]
[394035723,1763206746896,-151.0,0.00026686,7]
[394035724,1763206746919,-151.0,0.00026686,7]
[394035725,1763206746943,-157795.587369,0.00026687,2]
[394035726,1763206746965,-4078.85062626,0.00026687,2]
[394035727,1763206746988,-151.0,0.00026687,7]
[394035728,1763206747010,-151.0,0.00026687,7]
[394035729,1763206747034,-154.65626,0.00026687,7]
[394035730,1763206747056,-151.0,0.00026687,7]
[394035731,1763206747079,-153.551358,0.00026687,7]